Cogmind - Beta 9.6 @@@ ROGUE MODE // 2020.08.25 @ 12:59:32 // Winter2019/RPGLIKE Player: Hermelin Result: Destroyed by G-73 Enforcer with Heavy Laser Performance ------------- Evolutions (8) 4000 Regions Visited (19) 3800 Robots Destroyed (418) 2090 Value Destroyed (21625) 21625 Prototype IDs (28) 560 Alien Tech Used (0) 0 Bonus (13632) 13632 TOTAL SCORE: 45707 Bonus ------- Triggered High Security 1000 High Alert Combat Kills 10897 Follower Combat Kills 769 Entered Garrisons 1400 Used RIF Installer 3000 Friendly Fire -3434 Cogmind --------- Core Integrity 0/1100 Matter 280/300 Energy 27/1180 System Corruption 1% Temperature Cool (35) Movement Treading (158) Location -2/Garrison Parts ------- > --- POWER (3) -------- Quantum Reactor Light Quantum Reactor Light Quantum Reactor > --- PROPULSION (5) --- Medium Treads Medium Treads Biometal Medium Treads Armored Heavy Treads > --- UTILITY (12) ----- Advanced Power Amplifier Advanced Cooling System Improved Energy Well Experimental Signal Interpreter Improved Core Analyzer Weapon Cycler Hardened Heavy Armor Plating Medium Reactive Plating Advanced Force Field Relay Coupler [Grunt] (56) > --- WEAPON (6) ------- Gamma Rifle Enhanced Force Rifle Enhanced Force Rifle Cooled Particle Cannon Nova Cannon Improved Matter Neutralizer > --- INVENTORY (4) ---- Advanced Target Analyzer Improved Particle Charger Advanced Shield Generator System Restoration Module Peak State ------------ > --- POWER ------------ Quantum Reactor Light Quantum Reactor Light Quantum Reactor > --- PROPULSION ------- Medium Treads Medium Treads Biometal Medium Treads Armored Heavy Treads > --- UTILITY ---------- Advanced Power Amplifier Advanced Cooling System Advanced Coolant Injector Improved Energy Well Experimental Signal Interpreter Improved Core Analyzer Weapon Cycler Hardened Heavy Armor Plating Medium Reactive Plating Advanced Force Field Relay Coupler [Grunt] > --- WEAPON ----------- Gamma Rifle Enhanced Force Rifle Enhanced Force Rifle Cooled Particle Cannon Nova Cannon Improved Matter Neutralizer > --- INVENTORY -------- Advanced Target Analyzer Improved Particle Charger Advanced Shield Generator System Restoration Module [Rating: 172] Favorites ----------- Power Cooled Ion Engine Engine Cooled Ion Engine Power Core Micro Fission Core Reactor Light Quantum Reactor Propulsion Combat Airjet Treads Medium Treads Wheel Wheel Hover Unit Combat Airjet Flight Unit Flight Unit Utility Improved Heat Sink Device Improved Heat Sink Storage Improved Energy Well Processor Improved Core Analyzer Hackware Relay Coupler [Grunt] Protection Medium Reactive Plating Weapon Advanced Beam Cannon Energy Gun Enhanced Force Rifle Energy Cannon Advanced Beam Cannon Ballistic Gun Improved Assault Rifle Impact Weapon Shock Maul Slashing Weapon Ionic Axe Build | -11 -10 -10 -9 -9 -9 -9 -7 -7 -7 -7 -6 -6 -5 -5 -4 -4 -3 -2 -2 ------- Run | Scr Mat Min Mat Sto Gar Rec Fac Gar Fac Gar Fac Gar Fac Gar Fac Gar Res Res Gar Slots Evolved 22 | 3 1 3 4 2 1 . . 2 1 1 1 . 1 1 . 1 . . . Power 2 | . . 1 . . . . . . . 1 . . . . . . . . . Propulsion 4 | 1 . 1 1 . . . . . . . 1 . . . . . . . . Utility 11 | 1 . 1 3 1 1 . . 2 . . . . . 1 . 1 . . . Weapon 5 | 1 1 . . 1 . . . . 1 . . . 1 . . . . . . Parts Attached 156 | 8 10 3 27 9 3 . . 9 10 1 6 2 7 3 11 2 18 21 6 Power 20 | 1 . 1 7 1 . . . . . 1 1 . 2 . 1 . 1 3 1 Engine 14 | 1 . 1 7 1 . . . . . 1 1 . 1 . . . 1 . . Core 2 | . . . . . . . . . . . . . 1 . 1 . . . . Reactor 4 | . . . . . . . . . . . . . . . . . . 3 1 Propulsion 32 | 2 5 1 5 1 . . . 4 . . 3 . 1 . 1 . 2 6 1 Treads 4 | . . . . . . . . . . . . . . . . . . 3 1 Leg . | . . . . . . . . . . . . . . . . . . . . Wheel 2 | 2 . . . . . . . . . . . . . . . . . . . Hover 25 | . 4 1 5 1 . . . 4 . . 3 . 1 . 1 . 2 3 . Flight 1 | . 1 . . . . . . . . . . . . . . . . . . Utility 70 | 3 4 1 8 4 3 . . 5 8 . 2 2 3 3 3 2 7 9 3 Device 35 | 1 . 1 2 . 1 . . 3 5 . 2 2 . . 3 1 4 7 3 Storage 4 | . 1 . . 3 . . . . . . . . . . . . . . . Processor 7 | 2 1 . . . 1 . . . . . . . . . . 1 2 . . Hackware 3 | . . . . 1 1 . . . . . . . . 1 . . . . . Protection 21 | . 2 . 6 . . . . 2 3 . . . 3 2 . . 1 2 . Artifact . | . . . . . . . . . . . . . . . . . . . . Weapon 34 | 2 1 . 7 3 . . . . 2 . . . 1 . 6 . 8 3 1 Energy Gun 11 | 2 1 . 2 . . . . . . . . . . . 3 . 1 2 . Energy Cannon 17 | . . . 5 1 . . . . 2 . . . 1 . 3 . 4 . 1 Ballistic Gun 2 | . . . . 1 . . . . . . . . . . . . 1 . . Ballistic Cannon . | . . . . . . . . . . . . . . . . . . . . Launcher . | . . . . . . . . . . . . . . . . . . . . Special Weapon . | . . . . . . . . . . . . . . . . . . . . Impact Weapon 1 | . . . . 1 . . . . . . . . . . . . . . . Slashing Weapon 3 | . . . . . . . . . . . . . . . . . 2 1 . Piercing Weapon . | . . . . . . . . . . . . . . . . . . . . Special Melee Weapon . | . . . . . . . . . . . . . . . . . . . . Unidentified Prototypes 15 | . . . 1 3 . . . . 1 . 1 . . . 3 . 4 2 . Parts Lost 3 | . . . . . . . . 1 1 . . . . . . . 1 . . Power . | . . . . . . . . . . . . . . . . . . . . Propulsion . | . . . . . . . . . . . . . . . . . . . . Utility 2 | . . . . . . . . 1 1 . . . . . . . . . . Weapon 1 | . . . . . . . . . . . . . . . . . 1 . . Highest Loss Streak 1 | . . . . . . . . 1 1 . . . . . . . 1 . . Average Slot Usage (%) 97 | . 95 99 99 100 99 100 100 99 99 99 99 100 98 95 96 96 95 93 91 Engine 10 | . 13 15 13 11 11 11 11 10 9 10 13 13 12 12 11 7 7 4 . Hover 19 | . 22 26 23 23 22 22 22 21 19 18 19 21 20 20 20 19 19 11 . Device 20 | . 11 6 18 17 17 16 16 21 26 27 26 26 25 24 24 23 19 19 18 Storage 4 | . 1 9 6 3 5 5 5 5 4 4 4 4 4 4 4 3 3 3 3 Processor 1 | . 5 . . . . . . . . . . . . . . 2 6 7 7 Hackware 2 | . . . . 5 7 11 11 10 2 . . . . . 4 3 3 3 3 Protection 10 | . 8 9 13 11 11 11 11 9 14 13 13 13 10 8 8 7 7 7 7 Energy Gun 5 | . 30 30 6 . . . . . . . . . . . 4 7 7 7 11 Energy Cannon 15 | . . . 14 17 16 16 16 15 18 22 21 21 25 24 19 15 13 11 11 Naked Turns . | . . . . . . . . . . . . . . . . . . . . Heaviest Build 161 | 9 17 21 44 47 48 47 47 49 89 99 99 99 116 116 118 114 118 152 161 Greatest Support 161 | 25 25 29 51 60 60 60 60 88 88 93 106 106 118 118 118 118 118 133 161 Greatest Overweight (x) 1 | . . . 1 . . . . . 1 1 1 . . . 1 . 1 1 1 Average Overweight (x) . | . . . . . . . . . . . . . . . . . . . . Largest Inventory Capacity 4 | 2 2 2 3 3 3 3 3 3 3 3 3 3 3 3 3 3 4 4 4 Average Capacity 2 | 1 2 2 2 3 3 3 3 3 3 3 3 3 3 3 3 3 3 4 4 Most Carried 4 | 2 2 2 3 3 3 3 3 3 3 3 3 3 3 3 3 3 4 4 4 Average Carried 2 | 1 1 . 1 2 3 3 3 2 2 2 2 3 2 2 2 2 3 3 4 Final Capacity 4 | 2 2 2 3 3 3 3 3 3 3 3 3 3 3 3 3 3 4 4 4 Final Carried 4 | 2 2 1 3 3 3 3 3 3 3 3 3 3 3 3 3 3 4 4 4 Class Distribution -------------------- 55% | Scavenger-Tank 14% | Scavenger-Executioner 8% | Scavenger-Gunner 5% | Mutant 4% | Scavenger-Mutant 3% | Gunner 3% | Tank Dominant Class ---------------- Mutant | -10/Materials Gunner | -10/Mines Scavenger-Tank | -9/Materials Scavenger-Mutant | -9/Storage Scavenger-Tank | -9/Garrison Scavenger-Tank | -9/Recycling Scavenger-Tank | -7/Factory Scavenger-Tank | -7/Garrison Scavenger-Tank | -7/Factory Scavenger-Tank | -7/Garrison Scavenger-Tank | -6/Factory Scavenger-Tank | -6/Garrison Scavenger-Executioner | -5/Factory Scavenger-Executioner | -5/Garrison Scavenger-Executioner | -4/Factory Scavenger-Gunner | -4/Garrison Scavenger-Tank | -3/Research Scavenger-Gunner | -2/Research Scavenger-Executioner | -2/Garrison Resources | -11 -10 -10 -9 -9 -9 -9 -7 -7 -7 -7 -6 -6 -5 -5 -4 -4 -3 -2 -2 ----------- Run | Scr Mat Min Mat Sto Gar Rec Fac Gar Fac Gar Fac Gar Fac Gar Fac Gar Res Res Gar Matter Collected 1900 | 280 100 46 270 174 30 . . 90 90 20 40 61 50 50 36 94 191 230 48 Remotely . | . . . . . . . . . . . . . . . . . . . . Salvage Created 20870 | 162 380 231 2270 1029 . 56 212 1330 1584 1159 455 827 166 1481 240 1363 3473 3321 1131 Parts 975 | 13 39 12 126 86 . 8 9 68 85 37 28 31 4 44 9 59 155 119 43 Haulers Intercepted 16 | . 1 . 6 3 . . . . 1 . . . . . . . 3 2 . Recyclers Shooed 3 | 1 . . . . . . . . 1 . . . . . . . . 1 . Parts Field Recycled . | . . . . . . . . . . . . . . . . . . . . Retrieved Matter . | . . . . . . . . . . . . . . . . . . . . Parts Self-Destructed . | . . . . . . . . . . . . . . . . . . . . Prevented . | . . . . . . . . . . . . . . . . . . . . Kills | -11 -10 -10 -9 -9 -9 -9 -7 -7 -7 -7 -6 -6 -5 -5 -4 -4 -3 -2 -2 ------- Run | Scr Mat Min Mat Sto Gar Rec Fac Gar Fac Gar Fac Gar Fac Gar Fac Gar Res Res Gar Combat Hostiles Destroyed 337 | . 13 7 41 21 1 4 4 22 26 22 9 14 2 28 3 29 50 27 14 Melee 1 | . . . . . . . . . . . . . . . . . 1 . . Guns 108 | . 12 7 23 . . . . . . . . . . . . 17 29 11 9 Cannons 217 | . . . 18 21 1 4 4 21 26 22 9 14 2 24 1 10 19 16 5 AOE 2 | . 1 . . . . . . . . . . . . . 1 . . . . Classes Destroyed 21 | 2 6 2 3 1 . . 1 2 1 . 1 . . . . . 1 1 . Worker 10 | . . 1 1 . . . . . 4 . . . . . . . 4 . . Builder 8 | . 1 . 1 2 . . . . 3 . . . . . . . 1 . . Tunneler 6 | 5 . . . . . . . . . . . . . . . . 1 . . Hauler 16 | . 1 . 6 3 . . . . 1 . . . . . . . 3 2 . Recycler 5 | 1 1 . 1 . . . . . . . . . . . . . . 2 . Mechanic 1 | . . . . . . . . . . . . . . . . . . 1 . Operator 9 | . 2 . 4 2 . . . . . . . . . . . . . 1 . Drone 8 | . . . . 1 . 5 . . 2 . . . . . . . . . . Watcher 20 | . 3 . 5 2 . . . . 2 . 2 1 . . . . 4 1 . Swarmer 50 | . 6 3 . 6 . . . . 4 7 3 3 . 8 . 7 3 . . Saboteur 1 | . . . . . . . . . . . . . . . . . 1 . . Grunt 146 | . 7 2 26 6 1 . 1 14 9 6 . 7 . 15 . 15 20 8 9 Brawler 12 | . . . 1 . . . . . 2 1 . . . 2 . . 4 2 . Duelist 13 | . . . 4 1 . . 1 . . 1 . 1 . 1 . . 3 1 . Protector 1 | . . . . . . . . . 1 . . . . . . . . . . Sentry 56 | . . . 10 9 . . . 3 7 5 1 2 1 . 1 5 5 6 1 Demolisher 4 | . . 2 . . . . 1 1 . . . . . . . . . . . Specialist 5 | . . . . . . . . 2 . . . . . 2 . . . . 1 Hunter 18 | . . . . . . . 1 1 1 2 3 . 1 . . . 6 3 . Programmer 23 | . . . . . . . . 1 2 . 1 . . . 2 2 7 6 2 Behemoth 5 | . . . . . . . . . . . 1 1 . . . . 1 1 1 Best Kill Streak 17 | 6 4 3 8 9 1 4 4 8 9 6 3 7 1 7 2 17 13 9 6 Combat Bots Only 17 | . 4 3 4 6 1 4 4 8 5 6 2 7 1 7 2 17 12 8 6 Max Kills in Single Turn 3 | 1 2 1 2 2 1 1 1 1 3 1 1 2 1 1 2 1 2 2 2 Gunslinging . | . . . . . . . . . . . . . . . . . . . . Exploded 1 | . 1 . . . . . . . . . . . . . 1 . . . . Melee 1 | . . . . . . . . . . . . . . . . . 1 . . Uniques/NPCs Destroyed 1 | . . . . 1 . . . . . . . . . . . . . . . 01-MTF (-9/Storage) Combat | -11 -10 -10 -9 -9 -9 -9 -7 -7 -7 -7 -6 -6 -5 -5 -4 -4 -3 -2 -2 -------- Run | Scr Mat Min Mat Sto Gar Rec Fac Gar Fac Gar Fac Gar Fac Gar Fac Gar Res Res Gar Damage Taken 13968 | . 463 361 1044 282 . . 84 1535 776 371 361 286 60 692 190 1510 2650 1471 1832 Core 9003 | . 338 277 713 202 . . 59 1002 510 213 246 194 44 447 113 927 1638 904 1176 Absorbed by Shields 5125 | . . . 291 112 . . 32 557 281 160 138 102 21 313 67 427 982 537 1105 Redirected to Core 8162 | . 275 202 640 179 . . 59 891 463 198 201 157 34 403 96 864 1560 872 1068 Core Remaining (%) 92 | 100 . 76 . . . 100 . . . 100 . 100 . 97 . 85 85 . . Volleys Fired 830 | 10 65 20 119 38 5 8 7 73 61 39 21 28 4 55 4 66 121 56 30 Largest 6 | 2 3 3 3 4 3 3 3 3 5 5 5 5 6 6 6 6 5 5 5 Hottest 463 | 90 140 140 204 227 204 204 204 204 264 264 264 264 294 294 320 320 455 463 463 Shots Fired 2957 | 20 134 59 344 130 15 24 21 219 218 187 105 138 24 320 24 219 366 241 149 Gun 978 | 20 134 59 159 28 . . . . . . . . . . 4 120 234 131 89 Cannon 1979 | . . . 185 102 15 24 21 219 218 187 105 138 24 320 20 99 132 110 60 Launcher . | . . . . . . . . . . . . . . . . . . . . Special . | . . . . . . . . . . . . . . . . . . . . Kinetic 28 | . . . . 28 . . . . . . . . . . . . . . . Thermal 2880 | 20 134 59 344 102 15 24 21 219 218 187 105 138 24 320 24 219 366 222 119 Explosive . | . . . . . . . . . . . . . . . . . . . . Electromagnetic 49 | . . . . . . . . . . . . . . . . . . 19 30 Robot Hit Streak 85 | 5 8 8 20 13 5 1 11 19 21 16 16 10 8 22 25 44 40 75 85 Robot Miss Streak 13 | 2 3 2 4 3 3 13 1 4 3 4 5 6 1 4 . 2 3 1 1 Penetration Max . | . . . . . . . . . . . . . . . . . . . . Secondary Targets 4 | . . 2 2 . . . . . . . . . . . . . . . . Max Gunslinging Chain 1 | . . 1 1 . . . . . . . . . . . . . . . . Shots Hit Robots 1839 | 12 89 37 206 66 9 4 11 132 123 97 54 65 14 183 17 148 273 188 111 Core Hits 762 | 7 32 16 85 36 1 5 6 55 59 40 18 29 5 55 5 61 125 83 39 Critical Hits 225 | . . . 11 5 1 2 . 21 12 10 5 12 1 13 . 32 58 29 13 Critical Kills 82 | . . . 3 2 . 1 . 10 9 6 . 4 . 3 . 10 27 4 3 Critical Parts Destroyed 119 | . . . 8 3 1 1 . 10 3 3 5 7 . 8 . 17 28 16 9 Melee Attacks 10 | . . . . 8 . . . . . . . . . . . . 1 1 . Impact 8 | . . . . 8 . . . . . . . . . . . . . . . Slashing 2 | . . . . . . . . . . . . . . . . . 1 1 . Piercing . | . . . . . . . . . . . . . . . . . . . . Sneak Attacks 7 | . . . . 6 . . . . . . . . . . . . . 1 . Combat Hostiles . | . . . . . . . . . . . . . . . . . . . . Follow-up Attacks . | . . . . . . . . . . . . . . . . . . . . Damage Inflicted 47931 | 154 1185 475 3601 2159 158 154 227 2698 2700 2103 1383 1787 441 4763 715 3897 8205 7233 3893 Guns 16242 | 154 985 475 1371 109 . . . . . . . . . . 144 2686 4735 3559 2024 Cannons 30007 | . . . 2230 1177 158 154 227 2698 2700 2103 1365 1787 310 4763 391 1211 3470 3548 1715 Explosions 828 | . 200 . . 145 . . . . . . 18 . 131 . 180 . . . 154 Melee 854 | . . . . 728 . . . . . . . . . . . . . 126 . Ramming . | . . . . . . . . . . . . . . . . . . . . Kinetic 109 | . . . . 109 . . . . . . . . . . . . . . . Thermal 45746 | 154 1185 475 3601 1177 158 154 227 2698 2700 2103 1365 1787 441 4763 715 3897 8205 6694 3247 Explosive 163 | . . . . 145 . . . . . . 18 . . . . . . . . Electromagnetic 1059 | . . . . . . . . . . . . . . . . . . 413 646 Impact 728 | . . . . 728 . . . . . . . . . . . . . . . Slashing 126 | . . . . . . . . . . . . . . . . . . 126 . Piercing . | . . . . . . . . . . . . . . . . . . . . Highest Corruption 4 | . 4 4 . . . 1 . . . . 4 4 . . 1 . 4 3 3 Average Corruption 2 | . 2 4 . . . 1 . . . . 4 4 . . 1 . 2 1 1 Corruption Purged 13 | . . . . . . . . . . . . . . . 1 . 6 3 3 Effects 66 | . 4 4 . . . . . . . . 12 14 . . . . 18 8 6 Message Errors 9 | . 2 . . . . . . . . . 2 1 . . . . 2 1 1 Matter Fused 10 | . . 2 . . . . . . . . 1 2 . . . . 3 1 1 Heat Flow Errors 5 | . . . . . . . . . . . . 1 . . . . 2 1 1 Energy Discharges 4 | . . . . . . . . . . . 1 1 . . . . 1 1 . Data Loss (minor) 10 | . 2 . . . . . . . . . 3 1 . . . . 3 1 . Targeting Errors 22 | . . 1 . . . . . . . . 5 6 . . . . 5 3 2 Weapon Failures 6 | . . 1 . . . . . . . . . 2 . . . . 2 . 1 Overload Shots 11 | . . . . . . . . . . 2 . . . . . . 9 . . Effects 2 | . . . . . . . . . . . . . . . . . 2 . . Energy Bleed 1 | . . . . . . . . . . . . . . . . . 1 . . Meltdown 1 | . . . . . . . . . . . . . . . . . 1 . . Overflow Damage 1097 | . . . 73 261 . . . 13 5 33 72 4 73 127 60 9 67 232 68 Projectiles 855 | . . . 73 96 . . . 13 5 33 72 4 23 127 33 9 67 232 68 Explosions 77 | . . . . . . . . . . . . . 50 . 27 . . . . Melee 165 | . . . . 165 . . . . . . . . . . . . . . . Knockbacks 3 | . . . . 3 . . . . . . . . . . . . . . . Impact 2 | . . . . 2 . . . . . . . . . . . . . . . Kinetic . | . . . . . . . . . . . . . . . . . . . . Secondary 1 | . . . . 1 . . . . . . . . . . . . . . . Self-Inflicted Damage 213 | . . . . 44 . . . . . . . . . . 169 . . . . Shots 3 | . . . . 1 . . . . . . . . . . 2 . . . . Rammed . | . . . . . . . . . . . . . . . . . . . . Targets Rammed . | . . . . . . . . . . . . . . . . . . . . Kicked . | . . . . . . . . . . . . . . . . . . . . Crushed . | . . . . . . . . . . . . . . . . . . . . Highest Temperature 440 | . 162 300 144 96 63 46 67 249 114 10 63 121 96 198 144 197 423 440 198 Average Temperature 81 | . 40 99 39 41 29 21 27 78 23 5 20 32 45 98 67 99 118 157 136 Received Heat Transfer 3083 | . 126 42 392 38 . . 4 590 230 105 26 112 6 186 12 296 335 234 349 Effects 8 | . . . . . . . . . . . . . . . . . 6 2 . Shutdowns 2 | . . . . . . . . . . . . . . . . . 2 . . Energy Bleed 4 | . . . . . . . . . . . . . . . . . 2 2 . Interference 2 | . . . . . . . . . . . . . . . . . 2 . . Siege Activations . | . . . . . . . . . . . . . . . . . . . . Robots Corrupted . | . . . . . . . . . . . . . . . . . . . . Combat Hostiles . | . . . . . . . . . . . . . . . . . . . . Parts Fried 5 | . . . . . . . . . . . . . . . . . . 1 4 Impact Corruptions 4 | . . . . 4 . . . . . . . . . . . . . . . Robots Melted 11 | . . . 1 . . . . 1 . 1 . . . 4 1 2 1 . . Combat Hostiles 9 | . . . . . . . . 1 . . . . . 4 1 2 1 . . Parts Melted 161 | 1 5 2 12 5 . . 2 8 5 4 5 4 1 9 1 34 30 21 12 Heat Transferred 61041 | 397 2712 1286 7416 1961 259 259 407 4570 4458 2878 1850 2269 544 5291 729 5031 9933 5847 2944 Parts Sabotaged 4 | . . . . . . . . . . . . . . . . . 2 . 2 Parts Stolen . | . . . . . . . . . . . . . . . . . . . . Parts Stripped . | . . . . . . . . . . . . . . . . . . . . Power Chain Reactions 1 | . . . . . . . . . . . . . . . . . . . 1 Missiles Intercepted . | . . . . . . . . . . . . . . . . . . . . Alert | -11 -10 -10 -9 -9 -9 -9 -7 -7 -7 -7 -6 -6 -5 -5 -4 -4 -3 -2 -2 ------- Run | Scr Mat Min Mat Sto Gar Rec Fac Gar Fac Gar Fac Gar Fac Gar Fac Gar Res Res Gar Peak Influence 2149 | 30 226 194 945 1379 1315 639 1161 1574 1358 1602 1352 1171 813 1339 980 1457 2149 1959 1899 Average Influence 995 | 14 118 127 610 1054 1154 279 1032 1266 1149 1284 1063 986 697 1000 842 1082 1330 1493 1628 Maximum Alert Level 5 | . 1 . 3 4 4 2 4 4 4 5 4 4 3 4 3 4 5 5 5 Low Security (%) 10 | 100 83 100 5 . . 68 . . . . . . . . . . . . . Level 1 2 | . 16 . 8 1 . 4 . . . . . . . . . . . . . Level 2 11 | . . . 49 22 . 26 . . . . . . 72 9 . 9 . . . Level 3 28 | . . . 36 15 27 . 79 27 26 23 46 73 27 52 100 43 36 . . Level 4 41 | . . . . 60 72 . 20 72 73 70 53 26 . 37 . 47 41 72 63 Level 5 3 | . . . . . . . . . . 5 . . . . . . 13 27 8 High Security 1 | . . . . . . . . . . . . . . . . . 8 . 28 Max Security . | . . . . . . . . . . . . . . . . . . . . Squads Dispatched 59 | . 5 . 7 9 . . 2 . 6 . 3 . 2 . . . 12 9 4 Investigation 17 | . 3 . 2 4 . . 1 . 2 . 2 . . . . . 2 1 . Extermination 5 | . . . . . . . . . 1 . 1 . . . . . 2 1 . Reinforcement 13 | . 2 . 5 1 . . . . 2 . . . 2 . . . 1 . . Assault 19 | . . . . 1 . . . . 1 . . . . . . . 7 6 4 Garrison 5 | . . . . 3 . . 1 . . . . . . . . . . 1 . Intercept . | . . . . . . . . . . . . . . . . . . . . Construction Impeded . | . . . . . . . . . . . . . . . . . . . . Haulers Reinforced . | . . . . . . . . . . . . . . . . . . . . Stealth | -11 -10 -10 -9 -9 -9 -9 -7 -7 -7 -7 -6 -6 -5 -5 -4 -4 -3 -2 -2 --------- Run | Scr Mat Min Mat Sto Gar Rec Fac Gar Fac Gar Fac Gar Fac Gar Fac Gar Res Res Gar Distress Signals 13 | . 1 . 2 . . . . . 3 . 1 . . . . . 5 1 . Communications Jammed . | . . . . . . . . . . . . . . . . . . . . Distress Signals . | . . . . . . . . . . . . . . . . . . . . Times Spotted 482 | . 23 10 54 34 12 8 8 22 35 26 12 15 5 31 3 30 74 41 39 Peak Tracking Total 19 | . 4 6 5 5 4 4 5 10 5 4 4 5 3 7 2 13 13 6 19 Tactical Retreats 15 | . 2 . . . . . . . 1 4 1 2 . 1 . 2 . . 2 Traps | -11 -10 -10 -9 -9 -9 -9 -7 -7 -7 -7 -6 -6 -5 -5 -4 -4 -3 -2 -2 ------- Run | Scr Mat Min Mat Sto Gar Rec Fac Gar Fac Gar Fac Gar Fac Gar Fac Gar Res Res Gar Traps Triggered 28 | . 3 . 1 1 1 . . 4 1 5 1 2 . 1 2 3 1 . 2 Indirectly . | . . . . . . . . . . . . . . . . . . . . Trap Hack Attempts . | . . . . . . . . . . . . . . . . . . . . Triggered . | . . . . . . . . . . . . . . . . . . . . Disarmed 6 | . . . . 6 . . . . . . . . . . . . . . . Reprogrammed . | . . . . . . . . . . . . . . . . . . . . Reused . | . . . . . . . . . . . . . . . . . . . . Traps Extracted . | . . . . . . . . . . . . . . . . . . . . Installed . | . . . . . . . . . . . . . . . . . . . . Triggered . | . . . . . . . . . . . . . . . . . . . . Machines | -11 -10 -10 -9 -9 -9 -9 -7 -7 -7 -7 -6 -6 -5 -5 -4 -4 -3 -2 -2 ---------- Run | Scr Mat Min Mat Sto Gar Rec Fac Gar Fac Gar Fac Gar Fac Gar Fac Gar Res Res Gar Machines Disabled 51 | . 3 . 1 7 . 2 1 5 1 2 6 1 4 3 5 4 4 1 1 Max in Single Turn 5 | . 3 . 1 2 . 1 1 2 1 1 4 1 4 1 5 1 1 1 1 Garrison Relay 15 | . . . . . . . . 3 . 2 . 1 . 3 . 5 . . 1 Phase Generator 1 | . . . . . . . . 1 . . . . . . . . . . . Machines Sabotaged . | . . . . . . . . . . . . . . . . . . . . Garrisons Compromised . | . . . . . . . . . . . . . . . . . . . . Overloaded Fab Kills . | . . . . . . . . . . . . . . . . . . . . Fab Network Shutdowns . | . . . . . . . . . . . . . . . . . . . . Hacking | -11 -10 -10 -9 -9 -9 -9 -7 -7 -7 -7 -6 -6 -5 -5 -4 -4 -3 -2 -2 --------- Run | Scr Mat Min Mat Sto Gar Rec Fac Gar Fac Gar Fac Gar Fac Gar Fac Gar Res Res Gar Machines Accessed 63 | . 7 1 11 15 . 3 3 . 4 . 5 . 2 . 3 . 5 4 . Terminals 41 | . 6 1 7 12 . 3 2 . 2 . 2 . 1 . . . 4 1 . Fabricators 3 | . . . . . . . . . 1 . . . . . 1 . . 1 . Repair Stations 1 | . . . 1 . . . . . . . . . . . . . . . . Recycling Units 6 | . 1 . 1 2 . . . . . . 1 . . . . . . 1 . Scanalyzers 5 | . . . 2 . . . . . . . 1 . . . 1 . 1 . . Garrison Access 7 | . . . . 1 . . 1 . 1 . 1 . 1 . 1 . . 1 . Total Hacks 214 | . 36 5 44 56 . 18 11 . 8 . 12 . 3 . 5 . 9 7 . Successful 147 | . 23 3 36 43 . 14 5 . 3 . 6 . 2 . 4 . 3 5 . Failed 65 | . 12 2 8 12 . 4 6 . 5 . 6 . 1 . 1 . 6 2 . Catastrophic 11 | . . . 1 . . 1 1 . 2 . 1 . . . 1 . 2 2 . Database Lockouts 2 | . 1 . . 1 . . . . . . . . . . . . . . . Manual 94 | . 28 3 16 31 . 11 3 . . . 2 . . . . . . . . Terminals 164 | . 34 5 24 52 . 18 9 . 5 . 6 . 2 . . . 7 2 . Fabricators 6 | . . . . . . . . . 2 . . . . . 2 . . 2 . Repair Stations 4 | . . . 4 . . . . . . . . . . . . . . . . Recycling Units 10 | . 2 . 1 2 . . . . . . 3 . . . . . . 2 . Scanalyzers 21 | . . . 15 . . . . . . . 2 . . . 2 . 2 . . Garrison Access 9 | . . . . 2 . . 2 . 1 . 1 . 1 . 1 . . 1 . Terminal Hacks 71 | . 12 3 12 24 . 12 2 . . . 3 . 1 . . . 1 1 . Part Schematic 7 | . . . . 3 . 3 1 . . . . . . . . . . . . Robot Schematic 3 | . . . . 2 . 1 . . . . . . . . . . . . . Robot Analysis 9 | . 5 . 1 3 . . . . . . . . . . . . . . . Prototype ID Bank 12 | . 1 2 3 4 . 1 . . . . . . . . . . . 1 . Open Door 1 | . . . . 1 . . . . . . . . . . . . . . . Level Access Points 3 | . . . 1 . . 1 . . . . . . . . . . 1 . . Branch Access Points 2 | . 1 . . . . . 1 . . . . . . . . . . . . Emergency Access Points 1 | . 1 . . . . . . . . . . . . . . . . . . Terminal Index 5 | . 1 . 2 1 . . . . . . 1 . . . . . . . . Unreport Threat 5 | . 1 . . . . 4 . . . . . . . . . . . . . Locate Traps 6 | . . . 2 2 . . . . . . 2 . . . . . . . . Disarm Traps 2 | . . . . 2 . . . . . . . . . . . . . . . Patrol Status 1 | . . . . 1 . . . . . . . . . . . . . . . Recall Investigation 1 | . . . . 1 . . . . . . . . . . . . . . . Recall Reinforcements 1 | . . . . . . . . . . . . . 1 . . . . . . Hauler Manifests 4 | . 1 . 1 1 . 1 . . . . . . . . . . . . . Registered Prototypes 1 | . . . . 1 . . . . . . . . . . . . . . . Zone Layout 7 | . 1 1 2 2 . 1 . . . . . . . . . . . . . Fabricator Hacks 6 | . . . . . . . . . 2 . . . . . 2 . . 2 . Load Schematic 3 | . . . . . . . . . 1 . . . . . 1 . . 1 . Build 3 | . . . . . . . . . 1 . . . . . 1 . . 1 . Repair Station Hacks 4 | . . . 4 . . . . . . . . . . . . . . . . Scan Component 2 | . . . 2 . . . . . . . . . . . . . . . . Repair 2 | . . . 2 . . . . . . . . . . . . . . . . Recycling Unit Hacks 5 | . 1 . 1 2 . . . . . . . . . . . . . 1 . Report Inventory 3 | . 1 . . 2 . . . . . . . . . . . . . . . Retrieve Components 2 | . . . 1 . . . . . . . . . . . . . . 1 . Scanalyzer 18 | . . . 13 . . . . . . . 2 . . . 1 . 2 . . Insert Component 9 | . . . 6 . . . . . . . 1 . . . 1 . 1 . . Analyze 9 | . . . 7 . . . . . . . 1 . . . . . 1 . . Garrison Access Hacks 7 | . . . . 1 . . 1 . 1 . 1 . 1 . 1 . . 1 . Unlock Access 7 | . . . . 1 . . 1 . 1 . 1 . 1 . 1 . . 1 . Unauthorized Hacks 36 | . 10 . 6 16 . 2 2 . . . . . . . . . . . . Terminals 33 | . 9 . 6 15 . 2 1 . . . . . . . . . . . . Track 9 | . 3 . 1 5 . . . . . . . . . . . . . . . Botnet 20 | . 4 . 4 9 . 2 1 . . . . . . . . . . . . Detonate 1 | . 1 . . . . . . . . . . . . . . . . . . Operators 3 | . 1 . 1 1 . . . . . . . . . . . . . . . Fabricators . | . . . . . . . . . . . . . . . . . . . . Repair Stations . | . . . . . . . . . . . . . . . . . . . . Recycling Units 1 | . 1 . . . . . . . . . . . . . . . . . . Reject 1 | . 1 . . . . . . . . . . . . . . . . . . Scanalyzers . | . . . . . . . . . . . . . . . . . . . . Garrison Access 2 | . . . . 1 . . 1 . . . . . . . . . . . . Reprogram 2 | . . . . 1 . . 1 . . . . . . . . . . . . Data Cores Recovered 2 | . . . . 1 . . . . . . . . . . . . . 1 . Used 2 | . . . . 1 . . . . . . . . . . . . . 1 . Hacking Detections 48 | . 6 1 9 10 . 2 2 . 2 . 5 . 1 . 3 . 4 3 . Full Trace Events 19 | . 4 1 3 3 . 1 1 . 2 . 2 . . . . . 1 1 . Feedback Events 3 | . . . . . . 1 . . 1 . . . . . . . 1 . . Corruption 2 | . . . . . . 1 . . . . . . . . . . 1 . . Hackware Fried 1 | . . . . . . . . . 1 . . . . . . . . . . Feedback Blocked . | . . . . . . . . . . . . . . . . . . . . Robot Schematics Acquired 3 | . . . . 2 . 1 . . . . . . . . . . . . . Robots Built 4 | . . . . . . . . . . . . . . . 4 . . . . Matter 153 | . . . . . . . . . . . . . . . 153 . . . . Time 81 | . . . . . . . . . . . . . . . 81 . . . . Total Robot Build Rating 4 | . . . . . . . . . . . . . . . 4 . . . . Part Schematics Acquired 15 | . . . 6 3 . 3 1 . . . 1 . . . . . 1 . . Parts Built 4 | . . . . . . . . . 2 . . . . . . . . 2 . Matter 336 | . . . . . . . . . 146 . . . . . . . . 190 . Time 120 | . . . . . . . . . 73 . . . . . . . . 47 . Total Part Build Rating 16 | . . . . . . . . . 6 . . . . . . . . 10 . Parts Repaired 2 | . . . 2 . . . . . . . . . . . . . . . . Time 82 | . . . 82 . . . . . . . . . . . . . . . . Parts Recycled . | . . . . . . . . . . . . . . . . . . . . Recycled Matter . | . . . . . . . . . . . . . . . . . . . . Retrieved Matter . | . . . . . . . . . . . . . . . . . . . . Retrieved Components 4 | . . . 2 . . . . . . . . . . . . . . 2 . Parts Scanalyzed 9 | . . . 6 . . . . . . . 1 . . . 1 . 1 . . Part Schematics Acquired 8 | . . . 6 . . . . . . . 1 . . . . . 1 . . Parts Damaged . | . . . . . . . . . . . . . . . . . . . . Bothacking | -11 -10 -10 -9 -9 -9 -9 -7 -7 -7 -7 -6 -6 -5 -5 -4 -4 -3 -2 -2 ------------ Run | Scr Mat Min Mat Sto Gar Rec Fac Gar Fac Gar Fac Gar Fac Gar Fac Gar Res Res Gar Used RIF Installer 6 | . . . . . 1 . . 1 . 1 . 1 . 1 . 1 . . . Coupler Efficiency 1 | . . . . . . . . . . . . . . . . 1 . . . Robot Detection 1 | . . . . . . . . . . 1 . . . . . . . . . Structural Interface 1 | . . . . . . . . 1 . . . . . . . . . . . Program Shield 1 | . . . . . . . . . . . . 1 . . . . . . . Autooverride 1 | . . . . . . . . . . . . . . 1 . . . . . Robots Hacked 6 | . . . . . . . . . . . . . . . . 1 2 2 1 Non-combat . | . . . . . . . . . . . . . . . . . . . . Combat 6 | . . . . . . . . . . . . . . . . 1 2 2 1 Autooverrided 6 | . . . . . . . . . . . . . . . . 1 2 2 1 Robot Hacks Applied . | . . . . . . . . . . . . . . . . . . . . Relay Couplers Released 24 | . . . . . . . . 4 . 4 . 1 . 4 . 9 . 1 1 Machine Destruction 23 | . . . . . . . . 4 . 4 . 1 . 4 . 9 . . 1 Programmers 1 | . . . . . . . . . . . . . . . . . . 1 . Attached 2 | . . . . . 1 . . . . . . . . 1 . . . . . Robots Rewired 4 | . . . . . . . . 4 . . . . . . . . . . . Allies Hacked 1 | . . . . . . . . . . . . . . . . 1 . . . Hacks Repelled . | . . . . . . . . . . . . . . . . . . . . Allies | -11 -10 -10 -9 -9 -9 -9 -7 -7 -7 -7 -6 -6 -5 -5 -4 -4 -3 -2 -2 -------- Run | Scr Mat Min Mat Sto Gar Rec Fac Gar Fac Gar Fac Gar Fac Gar Fac Gar Res Res Gar Total Allies 23 | . . . . 13 . . . . . . . . . . 4 1 2 2 1 Largest Group 11 | . . . . 11 9 7 6 3 . . . . . . 4 4 1 1 1 Highest-Rated Group 187 | . . . . 187 72 56 48 24 . . . . . . 20 20 47 58 58 Highest-Rated Ally 99 | . . . . 99 8 8 8 8 . . . . . . 5 5 47 58 58 Total Orders 2 | . . . . 1 . . . . . . . . . . . 1 . . . GOTO 1 | . . . . 1 . . . . . . . . . . . . . . . EXPLORE 1 | . . . . . . . . . . . . . . . . 1 . . . Ally Attacks 156 | . . . . 23 73 13 28 3 . . . . . . . 6 3 4 3 Total Damage 2173 | . . . . 812 673 76 285 . . . . . . . . 32 97 106 92 Kills 39 | . . . . 17 15 3 3 . . . . . . . . 1 . . . Allies Corrupted . | . . . . . . . . . . . . . . . . . . . . Allies Melted . | . . . . . . . . . . . . . . . . . . . . Intel | -11 -10 -10 -9 -9 -9 -9 -7 -7 -7 -7 -6 -6 -5 -5 -4 -4 -3 -2 -2 ------- Run | Scr Mat Min Mat Sto Gar Rec Fac Gar Fac Gar Fac Gar Fac Gar Fac Gar Res Res Gar Robot Analysis Total 9 | . 5 . 1 3 . . . . . . . . . . . . . . . Derelict Logs Recovered 1 | . . 1 . . . . . . . . . . . . . . . . . Drone Launches 4 | . . . . 2 . . . . . . . . . . 2 . . . . Drone Recoveries . | . . . . . . . . . . . . . . . . . . . . Exploration | -11 -10 -10 -9 -9 -9 -9 -7 -7 -7 -7 -6 -6 -5 -5 -4 -4 -3 -2 -2 ------------- Run | Scr Mat Min Mat Sto Gar Rec Fac Gar Fac Gar Fac Gar Fac Gar Fac Gar Res Res Gar Turns Passed 12100 | 122 847 163 1833 1072 204 181 103 762 932 951 444 268 123 655 261 717 1219 761 482 Spaces Moved 10061 | 67 946 142 1764 1081 238 130 114 667 786 455 399 178 145 404 352 674 939 420 160 Core 14 | 14 . . . . . . . . . . . . . . . . . . . Treads 304 | . . . . . . . . . . . . . . . . . . 144 160 Legs . | . . . . . . . . . . . . . . . . . . . . Wheels 70 | 53 17 . . . . . . . . . . . . . . . . . . Hover 9635 | . 891 142 1764 1081 238 130 114 667 786 455 399 178 145 404 352 674 939 276 . Flight 38 | . 38 . . . . . . . . . . . . . . . . . . Fastest Speed 40 | 50 40 52 52 50 50 50 50 50 60 60 52 52 52 58 58 58 58 58 158 Average Speed 65 | 73 56 52 63 52 50 50 50 56 61 122 79 52 55 58 58 58 58 101 163 Slowest Speed 190 | 80 80 56 121 53 50 50 50 60 125 125 125 52 58 58 125 58 138 190 178 Overloaded Moves . | . . . . . . . . . . . . . . . . . . . . Propulsion Burnouts . | . . . . . . . . . . . . . . . . . . . . Robots Hopped . | . . . . . . . . . . . . . . . . . . . . Cave-ins Triggered . | . . . . . . . . . . . . . . . . . . . . Exploration Rate (%) 47 | 3 94 30 96 97 58 48 4 81 28 80 14 47 4 78 12 94 27 10 36 Regions Visited 19 Branch Regions 3 Pre-discovered Areas 1 | . . 1 . . . . . . . . . . . . . . . . . Known Exits Taken 11 | . 1 1 . 1 . 1 1 . 1 . 1 . 1 . 1 . 1 1 . Unknown Exits Taken 2 | 1 . . 1 . . . . . . . . . . . . . . . . Scrap Searched . | . . . . . . . . . . . . . . . . . . . . Spaces Dug 3 | . . . . . . . . . . 2 . . . . . . 1 . . Terrain Destroyed 361 | . 25 . . 16 . . . 71 26 2 48 . 16 . 52 . 39 38 28 Melee 1 | . . . . . . . . . . . . . . . . . 1 . . Projectile 154 | . . . . . . . . . 26 2 27 . 6 . 1 . 38 38 16 AOE 206 | . 25 . . 16 . . . 71 . . 21 . 10 . 51 . . . 12 Actions | -11 -10 -10 -9 -9 -9 -9 -7 -7 -7 -7 -6 -6 -5 -5 -4 -4 -3 -2 -2 --------- Run | Scr Mat Min Mat Sto Gar Rec Fac Gar Fac Gar Fac Gar Fac Gar Fac Gar Res Res Gar Total 13803 | 115 1129 184 2219 1483 310 227 143 889 1091 748 476 291 179 695 396 879 1395 641 313 Wait 1790 | 28 73 11 214 301 49 90 18 25 178 161 25 38 16 184 4 42 171 68 94 Move 10036 | 66 945 141 1763 1080 236 129 113 665 785 453 398 176 144 402 351 672 938 419 160 Hop . | . . . . . . . . . . . . . . . . . . . . Pick Up 46 | 2 3 1 11 3 . . . 3 4 4 1 . 1 1 2 4 3 3 . Fast Attach 101 | 8 6 1 14 6 3 . . 1 5 1 5 2 5 2 10 . 15 14 3 Attach 15 | . 1 2 5 1 . . . 2 1 . . . 1 1 . 1 . . . Detach 2 | . . . 2 . . . . . . . . . . . . . . . . Swap 40 | . 3 . 8 2 . . . 6 4 . 1 . 1 . 1 1 3 7 3 Drop 127 | 1 11 . 19 7 2 . . 6 11 4 6 2 7 2 10 3 15 20 1 Fire 830 | 10 65 20 119 38 5 8 7 73 61 39 21 28 4 55 4 66 121 56 30 Melee 10 | . . . . 8 . . . . . . . . . . . . 1 1 . Ram . | . . . . . . . . . . . . . . . . . . . . Kick . | . . . . . . . . . . . . . . . . . . . . Crush . | . . . . . . . . . . . . . . . . . . . . Escape Stasis 188 | . . . . 15 12 . . 14 . 65 . 26 . 13 13 26 . . 4 Rewire 33 | . . . . . . . . 33 . . . . . . . . . . . Trap . | . . . . . . . . . . . . . . . . . . . . Miscellaneous 585 | . 22 8 64 22 3 . 5 61 42 21 19 19 . 35 1 64 128 53 18 Route ------- -11/Scrapyard -10/Materials (discovered 4 exits: *Mat x3 / *Min) -10/Mines -9/Materials (discovered 5 exits: *Mat x3 / [*Min] / *Sto) -9/Storage (discovered 3 exits: *Mat / *Rec / Gar) -9/Garrison (discovered 2 exits: *Rec x2) -9/Recycling -7/Factory (discovered 3 exits: Low x2 / Gar) -7/Garrison (discovered 3 exits: *Fac x3) -7/Factory (discovered 4 exits: *Fac x2 / *Low / Gar) -7/Garrison (discovered 2 exits: *Fac x2) -6/Factory -6/Garrison -5/Factory (discovered 2 exits: [*Upp] / Gar) -5/Garrison (discovered 2 exits: *Fac x2) -4/Factory -4/Garrison (discovered 3 exits: *Res x3) -3/Research (discovered 3 exits: *Res x3) -2/Research -2/Garrison History --------- Turn | Location | Event 3 | -11/Scrapyard | Upgraded with Propulsion slot (x1) 3 | -11/Scrapyard | Upgraded with Utility slot (x1) 3 | -11/Scrapyard | Upgraded with Weapon slot (x1) 8 | -11/Scrapyard | Discovered new exit (range 17) 123 | -11/Scrapyard | Entered Materials 246 | -10/Materials | Discovered new exit (range 14) 315 | -10/Materials | Build established: Mutant 417 | -10/Materials | Discovered new exit (range 16) 419 | -10/Materials | Discovered new exit (range 15) 433 | -10/Materials | Identified exit to Materials 652 | -10/Materials | Discovered exit to Materials (range 17) 656 | -10/Materials | Central database locked down 680 | -10/Materials | Reached level 2 694 | -10/Materials | Upgraded with Weapon slot (x1) 868 | -10/Materials | Identified exit to Mines 970 | -10/Materials | Entered Mines 981 | -10/Mines | Met a Derelict bent on vengeance 995 | -10/Mines | Build established: Gunner 1005 | -10/Mines | Reached level 3 1023 | -10/Mines | Upgraded with Power slot (x1) 1023 | -10/Mines | Upgraded with Propulsion slot (x1) 1023 | -10/Mines | Upgraded with Utility slot (x1) 1045 | -10/Mines | Discovered exit to Materials (range 15) 1081 | -10/Mines | Learned location of Storage (-9) 1083 | -10/Mines | Assembled infested the area 1133 | -10/Mines | Entered Materials 1135 | -9/Materials | Reached level 4 1135 | -9/Materials | Upgraded with Utility slot (x1) 1307 | -9/Materials | Reached level 5 1310 | -9/Materials | Upgraded with Utility slot (x1) 1595 | -9/Materials | Identified exit to Materials 1635 | -9/Materials | Reached level 6 1639 | -9/Materials | Upgraded with Utility slot (x1) 1653 | -9/Materials | Discovered new exit (range 11) 1653 | -9/Materials | Discovered new exit (range 17) 1692 | -9/Materials | Repaired Cmb. Airjet? 1773 | -9/Materials | Repaired Imp. Hover Unit 2014 | -9/Materials | Reached level 7 2144 | -9/Materials | Build established: Scavenger-Tank 2175 | -9/Materials | Upgraded with Propulsion slot (x1) 2810 | -9/Materials | Reached level 8 2966 | -9/Materials | Entered Storage 3036 | -9/Storage | Upgraded with Weapon slot (x1) 3064 | -9/Storage | Used back door to open Recycling access 3064 | -9/Storage | Discovered new exit (range 5) 3077 | -9/Storage | Reached level 9 3281 | -9/Storage | Discovered exit to Materials (range 8) 3336 | -9/Storage | Identified exit to Garrison 3338 | -9/Storage | Garrison activated, responded to threat 3389 | -9/Storage | Reached level 10 3414 | -9/Storage | Upgraded with Utility slot (x1) 3504 | -9/Storage | Central database locked down 3506 | -9/Storage | Met 01-MTF 3766 | -9/Storage | First assault squad dispatched 3780 | -9/Storage | Build established: Scavenger-Mutant 3898 | -9/Storage | Assisted by bots powering up and referring to "LRC-V3" 3943 | -9/Storage | Destroyed 01-MTF 4038 | -9/Storage | Entered Garrison 4038 | -9/Garrison | Accompanied by 10 allies 4041 | -9/Garrison | Installed Relay Interface Framework 4074 | -9/Garrison | Triggered checkpoint 4082 | -9/Garrison | Triggered checkpoint 4095 | -9/Garrison | Reached level 11 4096 | -9/Garrison | Discovered new exit (range 47) 4097 | -9/Garrison | Upgraded with Utility slot (x1) 4098 | -9/Garrison | Triggered checkpoint 4132 | -9/Garrison | Triggered checkpoint 4137 | -9/Garrison | Discovered new exit (range 32) 4192 | -9/Garrison | Triggered checkpoint 4242 | -9/Garrison | Entered Recycling 4242 | -9/Recycling | Accompanied by 8 allies 4275 | -9/Recycling | Spotter reported a threat 4290 | -9/Recycling | Identified exit to Factory 4292 | -9/Recycling | Spotter reported a threat 4292 | -9/Recycling | Spotter reported a threat 4292 | -9/Recycling | Spotter reported a threat 4301 | -9/Recycling | Spotter reported a threat 4303 | -9/Recycling | Spotter reported a threat 4314 | -9/Recycling | Spotter reported a threat 4345 | -9/Recycling | Spotter reported a threat 4367 | -9/Recycling | Spotter reported a threat 4399 | -9/Recycling | Build established: Scavenger-Tank 4423 | -9/Recycling | Entered Factory 4423 | -7/Factory | Accompanied by 6 allies 4425 | -7/Factory | Reached level 12 4455 | -7/Factory | Identified exit to Lower Caves 4494 | -7/Factory | Garrison activated, responded to threat 4505 | -7/Factory | Reached level 13 4522 | -7/Factory | Identified exit to Garrison 4526 | -7/Factory | Entered Garrison 4526 | -7/Garrison | Accompanied by 3 allies 4564 | -7/Garrison | Triggered checkpoint 4585 | -7/Garrison | Triggered checkpoint 4607 | -7/Garrison | Core integrity fell below 50% 4611 | -7/Garrison | Reached level 14 4623 | -7/Garrison | Core integrity fell below 20% 4653 | -7/Garrison | Destroyed 8 combat bots 4668 | -7/Garrison | Triggered checkpoint 4694 | -7/Garrison | Triggered checkpoint 4740 | -7/Garrison | Triggered checkpoint 4746 | -7/Garrison | Garrison Relay disabled 4764 | -7/Garrison | Discovered new exit (range 12) 4829 | -7/Garrison | Phase Generator disabled 4898 | -7/Garrison | Triggered checkpoint 4928 | -7/Garrison | Garrison Relay disabled 4928 | -7/Garrison | Reached level 15 4934 | -7/Garrison | Upgraded with Utility slot (x2) 4966 | -7/Garrison | Discovered new exit (range 13) 5151 | -7/Garrison | Discovered new exit (range 16) 5156 | -7/Garrison | Triggered checkpoint 5223 | -7/Garrison | Garrison Relay disabled 5252 | -7/Garrison | Expanded RIF knowledge: Structural Interface 5288 | -7/Garrison | Entered Factory 5288 | -7/Factory | Accompanied by 3 allies 5322 | -7/Factory | Hacking Suite fried by hacking feedback 5660 | -7/Factory | Reached level 16 5688 | -7/Factory | First assault squad dispatched 5819 | -7/Factory | Upgraded with Weapon slot (x1) 5847 | -7/Factory | Discovered exit to Lower Caves (range 16) 5871 | -7/Factory | Fabricated Adv. Signal Interpreter? 6062 | -7/Factory | Discovered new exit (range 17) 6119 | -7/Factory | Discovered new exit (range 9) 6219 | -7/Factory | Identified exit to Garrison 6220 | -7/Factory | Entered Garrison 6227 | -7/Garrison | Expanded RIF knowledge: Robot Detection 6516 | -7/Garrison | Triggered checkpoint 6555 | -7/Garrison | Discovered new exit (range 11) 6702 | -7/Garrison | Triggered checkpoint 6709 | -7/Garrison | Garrison Relay disabled 6864 | -7/Garrison | Triggered checkpoint 6864 | -7/Garrison | Triggered checkpoint 6885 | -7/Garrison | Reached level 17 6904 | -7/Garrison | Upgraded with Power slot (x1) 7037 | -7/Garrison | Discovered new exit (range 10) 7074 | -7/Garrison | Triggered checkpoint 7118 | -7/Garrison | Garrison Relay disabled 7171 | -7/Garrison | Entered Factory 7317 | -6/Factory | Reached level 18 7320 | -6/Factory | Spotted B-75 Beast 7329 | -6/Factory | Destroyed B-75 Beast 7384 | -6/Factory | Upgraded with Propulsion slot (x1) 7612 | -6/Factory | Identified exit to Garrison 7615 | -6/Factory | Entered Garrison 7651 | -6/Garrison | Spotted B-75 Beast 7662 | -6/Garrison | Destroyed B-75 Beast 7676 | -6/Garrison | Triggered checkpoint 7700 | -6/Garrison | Reached level 19 7724 | -6/Garrison | Destroyed 7 combat bots 7748 | -6/Garrison | Triggered checkpoint 7772 | -6/Garrison | Triggered checkpoint 7863 | -6/Garrison | Garrison Relay disabled 7873 | -6/Garrison | Discovered new exit (range 8) 7881 | -6/Garrison | Expanded RIF knowledge: Program Shield 7883 | -6/Garrison | Entered Factory 7885 | -5/Factory | Reached level 20 7886 | -5/Factory | Upgraded with Weapon slot (x1) 7905 | -5/Factory | Discovered new exit (range 15) 8006 | -5/Factory | Identified exit to Garrison 8006 | -5/Factory | Entered Garrison 8022 | -5/Garrison | Triggered checkpoint 8033 | -5/Garrison | Reached level 21 8067 | -5/Garrison | Garrison Relay disabled 8184 | -5/Garrison | Build established: Scavenger-Executioner 8191 | -5/Garrison | Destroyed 7 combat bots 8252 | -5/Garrison | Triggered checkpoint 8292 | -5/Garrison | Triggered checkpoint 8292 | -5/Garrison | Triggered checkpoint 8406 | -5/Garrison | Triggered checkpoint 8423 | -5/Garrison | Garrison Relay disabled 8479 | -5/Garrison | Discovered new exit (range 13) 8556 | -5/Garrison | Reached level 22 8575 | -5/Garrison | Upgraded with Utility slot (x1) 8591 | -5/Garrison | Discovered new exit (range 5) 8597 | -5/Garrison | Expanded RIF knowledge: Autooverride 8608 | -5/Garrison | Triggered checkpoint 8632 | -5/Garrison | Garrison Relay disabled 8661 | -5/Garrison | Entered Factory 8663 | -4/Factory | Reached level 23 8832 | -4/Factory | Fabricated S-10 Pest? 8919 | -4/Factory | Identified exit to Garrison 8922 | -4/Factory | Entered Garrison 8922 | -4/Garrison | Accompanied by 6 allies 8925 | -4/Garrison | Expanded RIF knowledge: Coupler Efficiency 8925 | -4/Garrison | Reached level 24 8930 | -4/Garrison | Upgraded with Utility slot (x1) 8956 | -4/Garrison | Triggered checkpoint 8962 | -4/Garrison | Garrison Relay disabled 8998 | -4/Garrison | Triggered checkpoint 9076 | -4/Garrison | Core integrity fell below 50% 9113 | -4/Garrison | Core integrity fell below 20% 9152 | -4/Garrison | Destroyed 17 combat bots 9210 | -4/Garrison | Triggered checkpoint 9212 | -4/Garrison | Triggered checkpoint 9268 | -4/Garrison | Discovered new exit (range 2) 9298 | -4/Garrison | Garrison Relay disabled 9330 | -4/Garrison | Reached level 25 9359 | -4/Garrison | Garrison Relay disabled 9389 | -4/Garrison | Spotted B-86 Titan 9389 | -4/Garrison | Spotted B-86 Titan 9430 | -4/Garrison | Build established: Scavenger-Gunner 9440 | -4/Garrison | Triggered checkpoint 9458 | -4/Garrison | Triggered checkpoint 9478 | -4/Garrison | Garrison Relay disabled 9491 | -4/Garrison | Discovered new exit (range 12) 9536 | -4/Garrison | Triggered checkpoint 9564 | -4/Garrison | Triggered checkpoint 9581 | -4/Garrison | Garrison Relay disabled 9614 | -4/Garrison | Discovered new exit (range 13) 9639 | -4/Garrison | Entered Research 9641 | -3/Research | Reached level 26 9659 | -3/Research | Found Prototype Processor 9659 | -3/Research | Identified Exp. Signal Interpreter 9755 | -3/Research | Reached level 27 9889 | -3/Research | First assault squad dispatched 9932 | -3/Research | Found Prototype Processor 9932 | -3/Research | Identified Exp. Melee Analysis Suite 10013 | -3/Research | Build established: Scavenger-Tank 10061 | -3/Research | Identified exit to Research 10411 | -3/Research | Reached level 28 10466 | -3/Research | Spotted B-86 Titan 10487 | -3/Research | Destroyed B-86 Titan 10520 | -3/Research | Found Hvy. Reflective Plating 10753 | -3/Research | High security lockdown imminent 10801 | -3/Research | Destroyed 12 combat bots 10833 | -3/Research | High security lockdown engaged 10833 | -3/Research | Spotted B-86 Titan 10858 | -3/Research | Entered another Research area 10860 | -2/Research | Reached level 29 10860 | -2/Research | Reached level 30 11009 | -2/Research | Fabricated Cmb. Airjet? 11075 | -2/Research | Spotted B-90 Cyclops 11102 | -2/Research | Destroyed B-90 Cyclops 11108 | -2/Research | First assault squad dispatched 11397 | -2/Research | Reached level 31 11433 | -2/Research | Destroyed 8 combat bots 11542 | -2/Research | Garrison activated, responded to threat 11612 | -2/Research | Destroyed 7 combat bots 11618 | -2/Research | Identified exit to Garrison 11619 | -2/Research | Entered Garrison 11686 | -2/Garrison | Triggered checkpoint 11740 | -2/Garrison | Garrison Relay disabled 11758 | -2/Garrison | Build established: Scavenger-Executioner 11797 | -2/Garrison | Spotted B-90 Cyclops 11913 | -2/Garrison | Core integrity fell below 50% 11925 | -2/Garrison | Destroyed B-90 Cyclops 11965 | -2/Garrison | High security lockdown imminent 11971 | -2/Garrison | Reached level 32 12043 | -2/Garrison | Triggered checkpoint 12045 | -2/Garrison | High security lockdown engaged 12064 | -2/Garrison | Triggered checkpoint 12082 | -2/Garrison | Triggered checkpoint 12086 | -2/Garrison | Triggered checkpoint 12098 | -2/Garrison | Core integrity fell below 20% 12101 | -2/Garrison | Destroyed by G-73 Enforcer with Heavy Laser Last Messages --------------- 12087_ G-73 Enforcer unfolds itself. 12087_ L-61 Swordsman unfolds itself. 12090_ C-30 ARC bursts open, deploying its payload. 12090_ G-73 Enforcer unfolds itself. 12090_ L-61 Swordsman unfolds itself. 12090_ G-73 Enforcer unfolds itself. 12090_ E-15 Imp unfolds itself. 12090_ RIF reveals location of hidden door. 12091_ C-30 ARC bursts open, deploying its payload. 12091_ G-73 Enforcer unfolds itself. 12091_ L-61 Swordsman unfolds itself. 12091_ G-73 Enforcer unfolds itself. 12091_ M-36 Artificer unfolds itself. 12091_ Cld. Particle Cannon blown off. 12091_ Quantum Reactor blown off. 12091_ E-15 Imp destroyed. 12092_ Acquired Cld. Particle Cannon. 12094_ RIF automatically rewrites G-73 Enforcer IFF filter. 12096_ Acquired Quantum Reactor. 12097_ Adv. Coolant Injector severed. Map ----- +----------------------------------------------------+ | ?????????????????????????????????????????????????? | | ?????????????????????????????????????????????????? | | ?????????????????????????????????????????????????? | | ?????????????????????????????g???g???????????????? | | ?????????????????????????????????????????????????? | | ?????????????????????????????????????????????????? | | ?????????????????????????????????????????????????? | | ?????????????????????????????????????????????????? | | ?????????????????????????????????????????????????? | | ?????????????????????????????????????????????????? | | ?????????????????????????????????????????????????? | | ?????????????????????????????????????????????????? | | ?????????????????????????????????????????????????? | | ???????????? ???????????????????????????????????? | | ???????????? ???????????????????????????????????? | | ???????????? ???????????????????????????????????? | | ???????????# #??????????????????????????????????? | | ???????????# #??????????????????????????????????? | | ???????????# #??????????????????????????????????? | | ???????????# #??????????????????????????????????? | | ???????????+ #####??????????????????????????????? | | ???????????# ## ?????????????????????????????? | | ??????????## ## ###+##???????????????????????? | | ??????##### m ######## #?????????????? | | ??????? g +?????????????? | | ???????? lgg @ #?????????????? | | ??????????# ##^^%^##ll ##########??????????????? | | ????????### ## ;g! ###?????????????????????? | | ?????#### ! g g =#?????????????????????? | | ????? + ! *g l *%#?????????????????????? | | ?????#"## ! !! b ]#?????????????????????? | | ?????# ## % g #?????????????????????? | | ?????# #### = ;; g##g ####????????????????????? | | ?????# ## "! ## m %#" g " #????????????????????? | | ?????#""""" [ % ""##????????????????????? | | ##???# " !% " " #??????????????????? | | "#???# """# = = ""## #??????????????????? | | #???#["#### ;# #" "" #??#??????????????????? | | #???# ##??# ## ## # ##?????????????????????? | | #####=##### ######## ###??????????????????????? | | + *!![=== + #??????# #????????????????????????? | | #####%##### #??????? #????????????????????????? | | #???#!#???# #??????? #????????????????????????? | | #??#%%#???# #??????? ?????????????????????????? | | ###"#%##### #??????????????????????????????????? | | [*[%! #??????????????????????????????????? | | |*[ #??????????????????????????????????? | | #"####[########??????????????????????????????????? | | ##???# #?????????????????????????????????????????? | | ?????# #?????????????????????????????????????????? | +----------------------------------------------------+ Best States ------------- Heat Dissipation 121 Coolant Potential 100 Energy Generation 88 Energy Capacity 1360 Matter Stores 300 Matter Capacity 300 Sight Range 17 Robot Scan Range 18 Terrain Scan Range 16 Terrain Scan Density 110 Cloak Strength 3 Power Amplification 30 Armor Coverage 825 Resistance: KI 30 Resistance: TH 25 Resistance: EX 10 Weapon Cycling 15 Evasion (%) 62 Melee Accuracy 5 Core Analysis 8 Recoil Reduction 5 Particle Charging 20 Offensive Hacking 15 Defensive Hacking 5 Item Schematics ----------------- Adv. Beam Cannon | -9/Materials | Scanalyzed Cmb. Airjet | -9/Materials | Scanalyzed Cld. Ion Engine | -9/Materials | Scanalyzed Armor Integrity Analyzer | -9/Materials | Scanalyzed Rocket Launcher | -9/Materials | Scanalyzed Hacking Suite | -9/Materials | Scanalyzed Imp. Hover Unit | -9/Storage | Hacked Adv. Signal Interpreter | -9/Storage | Hacked System Backup Module | -9/Storage | Hacked Med. Armor Plating | -9/Recycling | Hacked Adv. Targeting Computer | -9/Recycling | Hacked Arm. Treads | -9/Recycling | Hacked Imp. Proton Missile Launcher | -7/Factory | Hacked Cld. Particle Cannon | -6/Factory | Scanalyzed System Restoration Module | -3/Research | Scanalyzed Robot Schematics ------------------ L-31 Rogue | -9/Storage | Hacked Y-45 Defender | -9/Storage | Hacked S-10 Pest | -9/Recycling | Hacked Fabricated ------------ Adv. Signal Interpreter | x2 | -7/Factory S-10 Pest | x4 | -4/Factory Cmb. Airjet | x2 | -2/Research Alien Tech Used ----------------- None Achievements -------------- Tank Challenges ------------ None RPGLIKE | -11 -10 -10 -9 -9 -9 -9 -7 -7 -7 -7 -6 -6 -5 -5 -4 -4 -3 -2 -2 --------- Run | Scr Mat Min Mat Sto Gar Rec Fac Gar Fac Gar Fac Gar Fac Gar Fac Gar Res Res Gar Levels Raised 31 | . 1 1 5 2 1 . 2 2 1 1 1 1 1 2 1 2 3 3 1 XP Earned 49769 | 3000 2075 1410 7488 3304 941 327 2815 3322 1525 1044 2125 1129 1932 2372 2143 2569 5472 3822 954 XP Spent 49470 | 2970 800 2100 6475 3100 2300 . . 6255 1400 1525 1400 500 1700 3200 . 3500 6265 4450 1530 Upgrades 77 | 11 1 3 10 2 1 . . 9 1 3 1 1 1 1 . 1 18 9 4 Power Slot 2 | . . 1 . . . . . . . 1 . . . . . . . . . Propulsion Slot 4 | 1 . 1 1 . . . . . . . 1 . . . . . . . . Utility Slot 11 | 1 . 1 3 1 1 . . 2 . . . . . 1 . 1 . . . Weapon Slot 5 | 1 1 . . 1 . . . . 1 . . . 1 . . . . . . Core Integrity 10 | . . . . . . . . 5 . . . . . . . . 3 . 2 Heat Dissipation 9 | 2 . . 2 . . . . 1 . . . . . . . . 3 . 1 Energy Generation 1 | . . . . . . . . . . . . . . . . . 1 . . Energy Storage 1 | . . . . . . . . . . . . . . . . . 1 . . Mass Support 2 | 1 . . . . . . . . . 1 . . . . . . . . . Inventory Capacity 4 | 2 . . 1 . . . . . . . . . . . . . 1 . . Sight Range 1 | 1 . . . . . . . . . . . . . . . . . . . Sensor Range 9 | . . . 3 . . . . . . 1 . . . . . . 5 . . Ranged Accuracy 8 | . . . . . . . . 1 . . . 1 . . . . 4 2 . Hack Attack % 1 | 1 . . . . . . . . . . . . . . . . . . . Hack Defense % 1 | 1 . . . . . . . . . . . . . . . . . . . TH Resistance % 2 | . . . . . . . . . . . . . . . . . . 2 . EX Resistance % 2 | . . . . . . . . . . . . . . . . . . 2 . TH Damage % 4 | . . . . . . . . . . . . . . . . . . 3 1 Protomatter Created 5627 | . 215 55 546 367 34 5 50 474 346 327 136 168 . 311 . 602 1264 369 358 Integrity Restored 11823 | . 445 162 1242 286 44 . 84 1306 753 391 374 367 . 727 . 1374 2712 1139 417 Core 7900 | . 338 138 852 202 . . 59 1002 510 213 190 250 . 466 . 940 1614 709 417 Parts 3923 | . 107 24 390 84 44 . 25 304 243 178 184 117 . 261 . 434 1098 430 . Protomatter Decayed 1773 | . 17 . 46 396 173 38 50 65 30 161 . 40 . 59 . 194 233 121 150 Game ------ Seed BoreSurveybotMatter Manual? 0 Play Time 03:14:22 Cumulative 152.6 hours Start 2020.08.20 @ 13:45:36 End 2020.08.25 @ 12:59:32 Sessions 5 Manual Loads 0 Difficulty Rogue Special Mode Winter2019/RPGLIKE Game No. 63 Rogue 63 Adventurer 0 Explorer 0 Win Type - Total 2 Types 1/0/0/1/0/0/0 Lore% 77 Gallery% 71 Achievement% 65 Wizard Run 0 Options --------- ASCII 0 Keyboard 0 Movement Numpad Keybinds 0 Fullscreen 1 Font 14/SmallcapsGlow Map View 84x54 Tactical HUD 1 Map Filters NONE Filters NONE Steam 1 RUN: 17807df8-4ce0-42dc-b9b5-d6cbd0cd0356